[Event "Late-Titled-Tuesday-Blitz-April-30-2024"]
[Site "Chess.com"]
[Date "2024.04.30"]
[Round "4"]
[White "Caterpiller35"]
[Black "youngdinousaur"]
[Result "0-1"]
[WhiteElo "2487"]
[BlackElo "2250"]
[TimeControl "180+1"]
[EndTime "14:41:48 PDT"]
[Termination "youngdinousaur won on time"]

1. e4 {[%clk 0:03:00.9]} 1... c5 {[%clk 0:02:59.4]} 2. Nf3 {[%clk 0:03:01.2]}
2... e6 {[%clk 0:02:59.7]} 3. d4 {[%clk 0:03:00.4]} 3... cxd4 {[%clk 0:03:00.6]}
4. Nxd4 {[%clk 0:03:01]} 4... Nf6 {[%clk 0:03:01.3]} 5. Nc3 {[%clk 0:03:01.1]}
5... Nc6 {[%clk 0:03:01.5]} 6. Ndb5 {[%clk 0:03:00.3]} 6... d6 {[%clk
0:03:01.4]} 7. Bf4 {[%clk 0:02:58.7]} 7... e5 {[%clk 0:03:01.7]} 8. Bg5 {[%clk
0:02:58.8]} 8... a6 {[%clk 0:03:00.6]} 9. Na3 {[%clk 0:02:58.4]} 9... b5 {[%clk
0:03:00.9]} 10. Nd5 {[%clk 0:02:58.7]} 10... Be7 {[%clk 0:03:01.6]} 11. Bxf6
{[%clk 0:02:58.7]} 11... Bxf6 {[%clk 0:03:02.5]} 12. c4 {[%clk 0:02:59]} 12...
b4 {[%clk 0:03:02.3]} 13. Nc2 {[%clk 0:02:58.8]} 13... a5 {[%clk 0:03:03]} 14.
Qf3 {[%clk 0:02:56.8]} 14... Bg5 {[%clk 0:02:57.4]} 15. g3 {[%clk 0:02:47.6]}
15... O-O {[%clk 0:02:50.3]} 16. h4 {[%clk 0:02:45]} 16... Bh6 {[%clk
0:02:50.2]} 17. Bh3 {[%clk 0:02:39]} 17... Ne7 {[%clk 0:02:33.1]} 18. Bxc8
{[%clk 0:02:22.6]} 18... Rxc8 {[%clk 0:02:34]} 19. Nxe7+ {[%clk 0:02:21.5]}
19... Qxe7 {[%clk 0:02:34.9]} 20. b3 {[%clk 0:02:20.9]} 20... Qe6 {[%clk
0:02:27.6]} 21. g4 {[%clk 0:02:05.4]} 21... Bf4 {[%clk 0:02:25.7]} 22. Rd1
{[%clk 0:01:53.1]} 22... g6 {[%clk 0:02:19.2]} 23. h5 {[%clk 0:01:49.2]} 23...
Rc7 {[%clk 0:02:02.5]} 24. Rd5 {[%clk 0:01:45.1]} 24... Rc5 {[%clk 0:02:00.5]}
25. Ke2 {[%clk 0:01:17.7]} 25... Rxd5 {[%clk 0:01:59.3]} 26. exd5 {[%clk
0:01:18.6]} 26... Qf6 {[%clk 0:01:52.7]} 27. Ne1 {[%clk 0:01:15.5]} 27... Qg7
{[%clk 0:01:46.8]} 28. Ng2 {[%clk 0:01:03.7]} 28... Bh6 {[%clk 0:01:44.8]} 29.
Ne3 {[%clk 0:00:59.3]} 29... Bxe3 {[%clk 0:01:34.6]} 30. Qxe3 {[%clk 0:00:45.7]}
30... f5 {[%clk 0:01:33.6]} 31. gxf5 {[%clk 0:00:44.7]} 31... gxf5 {[%clk
0:01:28.2]} 32. h6 {[%clk 0:00:43.1]} 32... Qg4+ {[%clk 0:01:27.1]} 33. Kd2
{[%clk 0:00:33.7]} 33... f4 {[%clk 0:01:16.2]} 34. Qh3 {[%clk 0:00:26.3]} 34...
Qxh3 {[%clk 0:01:12.8]} 35. Rxh3 {[%clk 0:00:27.1]} 35... Rf6 {[%clk 0:01:13.4]}
36. Kd3 {[%clk 0:00:22.7]} 36... Kf7 {[%clk 0:01:12.5]} 37. c5 {[%clk
0:00:19.7]} 37... dxc5 {[%clk 0:01:07.3]} 38. Ke4 {[%clk 0:00:19.9]} 38... a4
{[%clk 0:00:51.7]} 39. Kxe5 {[%clk 0:00:19.1]} 39... axb3 {[%clk 0:00:51.2]} 40.
axb3 {[%clk 0:00:20]} 40... f3 {[%clk 0:00:41.7]} 41. d6 {[%clk 0:00:17.1]}
41... c4 {[%clk 0:00:39.6]} 42. bxc4 {[%clk 0:00:15.8]} 42... b3 {[%clk
0:00:39.2]} 43. Rh1 {[%clk 0:00:16]} 43... Re6+ {[%clk 0:00:37.1]} 44. Kd5
{[%clk 0:00:15.7]} 44... Re2 {[%clk 0:00:37.6]} 45. Rd1 {[%clk 0:00:14.4]} 45...
b2 {[%clk 0:00:36.9]} 46. Kc6 {[%clk 0:00:13.7]} 46... Rc2 {[%clk 0:00:32.6]}
47. d7 {[%clk 0:00:11]} 47... Rxc4+ {[%clk 0:00:10.2]} 48. Kd5 {[%clk
0:00:11.2]} 48... Rc1 {[%clk 0:00:08.9]} 49. Rd3 {[%clk 0:00:03.7]} 49... b1=Q
{[%clk 0:00:08.3]} 50. Rxf3+ {[%clk 0:00:02.5]} 50... Kg6 {[%clk 0:00:08.2]} 51.
Rg3+ {[%clk 0:00:01.1]} 51... Kxh6 {[%clk 0:00:07.7]} 52. d8=Q {[%clk
0:00:01.5]} 52... Rd1+ {[%clk 0:00:07.3]} 53. Ke6 {[%clk 0:00:01.3]} 53... Rxd8
{[%clk 0:00:08.2]} 54. Kf6 {[%clk 0:00:01.1]} 54... Qg6+ {[%clk 0:00:08]} 55.
Rxg6+ {[%clk 0:00:00.5]} 55... hxg6 {[%clk 0:00:08.9]} 0-1

[Event "Late-Titled-Tuesday-Blitz-April-30-2024"]
[Site "Chess.com"]
[Date "2024.04.30"]
[Round "4"]
[White "MyDream003"]
[Black "vladgoncharov"]
[Result "1-0"]
[WhiteElo "2831"]
[BlackElo "2601"]
[TimeControl "180+1"]
[EndTime "14:41:57 PDT"]
[Termination "MyDream003 won on time"]

1. e4 {[%clk 0:02:56.5]} 1... e6 {[%clk 0:02:59.3]} 2. d4 {[%clk 0:02:56.7]}
2... d5 {[%clk 0:02:59.9]} 3. Nc3 {[%clk 0:02:55.3]} 3... Nf6 {[%clk 0:02:59.8]}
4. e5 {[%clk 0:02:55.3]} 4... Nfd7 {[%clk 0:03:00.3]} 5. f4 {[%clk 0:02:56]}
5... c5 {[%clk 0:03:00.8]} 6. Nf3 {[%clk 0:02:56.7]} 6... Nc6 {[%clk 0:03:01]}
7. Be3 {[%clk 0:02:57.4]} 7... a6 {[%clk 0:03:01.4]} 8. Qd2 {[%clk 0:02:57.6]}
8... b5 {[%clk 0:03:01.3]} 9. a3 {[%clk 0:02:57.9]} 9... Qb6 {[%clk 0:02:59]}
10. Ne2 {[%clk 0:02:49.2]} 10... b4 {[%clk 0:02:58.6]} 11. c3 {[%clk 0:02:26.1]}
11... bxc3 {[%clk 0:02:51.1]} 12. bxc3 {[%clk 0:02:27]} 12... Na5 {[%clk
0:02:50.6]} 13. Nc1 {[%clk 0:02:22.7]} 13... cxd4 {[%clk 0:02:37.5]} 14. cxd4
{[%clk 0:02:21.2]} 14... Nc4 {[%clk 0:02:13.7]} 15. Bxc4 {[%clk 0:02:20.7]}
15... dxc4 {[%clk 0:02:14.6]} 16. Ne2 {[%clk 0:02:07.6]} 16... Qc6 {[%clk
0:02:11.9]} 17. O-O {[%clk 0:01:44.4]} 17... Nb6 {[%clk 0:02:11.3]} 18. f5
{[%clk 0:01:23.7]} 18... Nd5 {[%clk 0:02:04.8]} 19. f6 {[%clk 0:01:17.7]} 19...
gxf6 {[%clk 0:01:53]} 20. exf6 {[%clk 0:01:18.6]} 20... Bd6 {[%clk 0:01:52.4]}
21. Bf2 {[%clk 0:01:11.1]} 21... Bb7 {[%clk 0:01:50.3]} 22. Bg3 {[%clk
0:01:11.4]} 22... Bxg3 {[%clk 0:01:22.6]} 23. hxg3 {[%clk 0:01:12.3]} 23... c3
{[%clk 0:01:12.5]} 24. Qd3 {[%clk 0:00:58.3]} 24... c2 {[%clk 0:01:12.4]} 25.
Rac1 {[%clk 0:00:56.4]} 25... Rc8 {[%clk 0:01:10.9]} 26. Rf2 {[%clk 0:00:47]}
26... Qc4 {[%clk 0:00:56.1]} 27. Qd2 {[%clk 0:00:45.6]} 27... Qb3 {[%clk
0:00:50.2]} 28. Ne5 {[%clk 0:00:40.7]} 28... Qe3 {[%clk 0:00:44.5]} 29. Rxc2
{[%clk 0:00:33.4]} 29... Rxc2 {[%clk 0:00:37.7]} 30. Qxc2 {[%clk 0:00:34.3]}
30... O-O {[%clk 0:00:37.2]} 31. Qc1 {[%clk 0:00:17.1]} 31... Rc8 {[%clk
0:00:33.8]} 32. Qxe3 {[%clk 0:00:16.9]} 32... Nxe3 {[%clk 0:00:34.7]} 33. Nf4
{[%clk 0:00:10.4]} 33... Rc1+ {[%clk 0:00:32.2]} 34. Kh2 {[%clk 0:00:10.7]}
34... h6 {[%clk 0:00:16.5]} 35. Rb2 {[%clk 0:00:09.1]} 35... Rc7 {[%clk
0:00:15]} 36. g4 {[%clk 0:00:09.1]} 36... Kh7 {[%clk 0:00:14.4]} 37. Kg3 {[%clk
0:00:09]} 37... Nd5 {[%clk 0:00:12]} 38. Nxd5 {[%clk 0:00:08.8]} 38... Bxd5
{[%clk 0:00:12.9]} 39. Kh4 {[%clk 0:00:07.4]} 39... a5 {[%clk 0:00:13.2]} 40.
Rb5 {[%clk 0:00:06.9]} 40... a4 {[%clk 0:00:13.2]} 41. Rb8 {[%clk 0:00:07.3]}
41... Bb3 {[%clk 0:00:12.6]} 42. Rf8 {[%clk 0:00:06.8]} 42... Ba2 {[%clk
0:00:11.9]} 43. Nxf7 {[%clk 0:00:06.3]} 43... Rc1 {[%clk 0:00:07.3]} 44. Ne5
{[%clk 0:00:05.6]} 44... Rh1+ {[%clk 0:00:06.9]} 45. Kg3 {[%clk 0:00:06.2]}
45... Rf1 {[%clk 0:00:06.8]} 46. f7 {[%clk 0:00:06.4]} 46... Bd5 {[%clk
0:00:06.9]} 47. Re8 {[%clk 0:00:05.9]} 47... Kg7 {[%clk 0:00:06.7]} 48. Rg8+
{[%clk 0:00:06]} 48... Kh7 {[%clk 0:00:06.1]} 49. f8=Q {[%clk 0:00:05.6]} 49...
Rxf8 {[%clk 0:00:05.3]} 50. Rxf8 {[%clk 0:00:06.5]} 50... Kg7 {[%clk 0:00:06.2]}
51. Rf7+ {[%clk 0:00:06.9]} 51... Kg8 {[%clk 0:00:07.1]} 52. Rd7 {[%clk
0:00:07]} 52... Bb3 {[%clk 0:00:06.5]} 53. Ra7 {[%clk 0:00:06.7]} 53... Kf8
{[%clk 0:00:05.9]} 54. Nd7+ {[%clk 0:00:07.1]} 54... Ke7 {[%clk 0:00:06]} 55.
Nc5+ {[%clk 0:00:08]} 55... Kd6 {[%clk 0:00:06.7]} 56. Nxb3 {[%clk 0:00:08.9]}
56... axb3 {[%clk 0:00:07.3]} 57. Rb7 {[%clk 0:00:09.8]} 57... Kd5 {[%clk
0:00:08.2]} 58. Rxb3 {[%clk 0:00:10.2]} 58... Kxd4 {[%clk 0:00:09.1]} 59. a4
{[%clk 0:00:10.4]} 59... Kc4 {[%clk 0:00:10]} 60. Rb8 {[%clk 0:00:11.1]} 1-0

[Event "Late-Titled-Tuesday-Blitz-April-30-2024"]
[Site "Chess.com"]
[Date "2024.04.30"]
[Round "4"]
[White "zverr1"]
[Black "IMRosen"]
[Result "1/2-1/2"]
[WhiteElo "2482"]
[BlackElo "2684"]
[TimeControl "180+1"]
[EndTime "14:41:58 PDT"]
[Termination "Game drawn by stalemate"]

1. d4 {[%clk 0:02:48]} 1... d5 {[%clk 0:02:59.7]} 2. c4 {[%clk 0:02:47.5]} 2...
e6 {[%clk 0:03:00.2]} 3. Nf3 {[%clk 0:02:46.7]} 3... Nf6 {[%clk 0:03:00.6]} 4.
g3 {[%clk 0:02:45.5]} 4... dxc4 {[%clk 0:03:00.3]} 5. Bg2 {[%clk 0:02:44.8]}
5... Bb4+ {[%clk 0:03:00.7]} 6. Bd2 {[%clk 0:02:44.3]} 6... c5 {[%clk
0:03:01.2]} 7. Bxb4 {[%clk 0:02:44]} 7... cxb4 {[%clk 0:03:02.1]} 8. Ne5 {[%clk
0:02:44.3]} 8... O-O {[%clk 0:02:56.1]} 9. Nxc4 {[%clk 0:02:42.9]} 9... Nc6
{[%clk 0:02:56.5]} 10. e3 {[%clk 0:02:32.5]} 10... e5 {[%clk 0:02:57.1]} 11. d5
{[%clk 0:02:21.4]} 11... b5 {[%clk 0:02:57.1]} 12. O-O {[%clk 0:02:10.9]} 12...
bxc4 {[%clk 0:02:41.3]} 13. dxc6 {[%clk 0:02:10.6]} 13... Bf5 {[%clk 0:02:18.7]}
14. a3 {[%clk 0:01:56.3]} 14... Bd3 {[%clk 0:02:04.1]} 15. Re1 {[%clk
0:01:44.4]} 15... b3 {[%clk 0:01:59.4]} 16. c7 {[%clk 0:01:05.5]} 16... Qxc7
{[%clk 0:01:59]} 17. Bxa8 {[%clk 0:01:06.4]} 17... Rxa8 {[%clk 0:01:59.2]} 18.
Nc3 {[%clk 0:01:06.9]} 18... h5 {[%clk 0:01:52.8]} 19. Qf3 {[%clk 0:01:06]}
19... Rd8 {[%clk 0:01:40.1]} 20. h3 {[%clk 0:00:57.4]} 20... Qd7 {[%clk
0:01:29.1]} 21. Kh2 {[%clk 0:00:53.1]} 21... Qe6 {[%clk 0:01:25.6]} 22. Rg1
{[%clk 0:00:45.1]} 22... a5 {[%clk 0:00:52.9]} 23. g4 {[%clk 0:00:44.2]} 23...
hxg4 {[%clk 0:00:51.6]} 24. hxg4 {[%clk 0:00:45.1]} 24... g6 {[%clk 0:00:32.2]}
25. Kg3 {[%clk 0:00:37.9]} 25... Kg7 {[%clk 0:00:25]} 26. Rh1 {[%clk 0:00:38.3]}
26... Qd6 {[%clk 0:00:17.6]} 27. Kg2 {[%clk 0:00:31.1]} 27... Qd7 {[%clk
0:00:13.8]} 28. Kg3 {[%clk 0:00:16.9]} 28... Qd6 {[%clk 0:00:13.3]} 29. Kg2
{[%clk 0:00:13.8]} 29... Qd7 {[%clk 0:00:13.6]} 30. Kg3 {[%clk 0:00:14.1]} 30...
g5 {[%clk 0:00:14.3]} 31. e4 {[%clk 0:00:12.3]} 31... Qe6 {[%clk 0:00:03.9]} 32.
Rae1 {[%clk 0:00:12.4]} 32... Rd4 {[%clk 0:00:03.9]} 33. Re3 {[%clk 0:00:12.2]}
33... Qd7 {[%clk 0:00:02.6]} 34. Rh2 {[%clk 0:00:09.6]} 34... Rd6 {[%clk
0:00:02.8]} 35. Qh1 {[%clk 0:00:10]} 35... Kf8 {[%clk 0:00:02.3]} 36. f3 {[%clk
0:00:10.4]} 36... Ke7 {[%clk 0:00:02.7]} 37. Rh6 {[%clk 0:00:10.6]} 37... Re6
{[%clk 0:00:01.7]} 38. Rxf6 {[%clk 0:00:10.9]} 38... Rxf6 {[%clk 0:00:01.9]} 39.
Qh8 {[%clk 0:00:11.3]} 39... Qd8 {[%clk 0:00:01.8]} 40. Qg7 {[%clk 0:00:11.5]}
40... Ke6 {[%clk 0:00:01.6]} 41. Qxg5 {[%clk 0:00:11.7]} 41... Rxf3+ {[%clk
0:00:02.3]} 42. Rxf3 {[%clk 0:00:11.7]} 42... Qxg5 {[%clk 0:00:03.1]} 43. Nd5
{[%clk 0:00:10.7]} 43... Qc1 {[%clk 0:00:03.6]} 44. Rf6+ {[%clk 0:00:10.6]}
44... Kd7 {[%clk 0:00:04.3]} 45. Rxf7+ {[%clk 0:00:11.5]} 45... Ke8 {[%clk
0:00:04.8]} 46. Re7+ {[%clk 0:00:11.5]} 46... Kd8 {[%clk 0:00:05.4]} 47. Rxe5
{[%clk 0:00:12.3]} 47... Qg1+ {[%clk 0:00:04.8]} 48. Kf4 {[%clk 0:00:12]} 48...
Qh2+ {[%clk 0:00:04.7]} 49. Kf5 {[%clk 0:00:12.5]} 49... Qxb2 {[%clk 0:00:05.3]}
50. Ke6 {[%clk 0:00:12.8]} 50... Qxe5+ {[%clk 0:00:05.6]} 51. Kxe5 {[%clk
0:00:13.1]} 51... b2 {[%clk 0:00:06.2]} 52. Nc3 {[%clk 0:00:13.5]} 52... b1=Q
{[%clk 0:00:06.2]} 53. Nxb1 {[%clk 0:00:14.1]} 53... Bxb1 {[%clk 0:00:07.1]} 54.
Kd4 {[%clk 0:00:14.5]} 54... Bd3 {[%clk 0:00:05.9]} 55. g5 {[%clk 0:00:13.9]}
55... Ke7 {[%clk 0:00:05.1]} 56. e5 {[%clk 0:00:14]} 56... Kf7 {[%clk
0:00:05.1]} 57. Kc3 {[%clk 0:00:13.9]} 57... Ke6 {[%clk 0:00:04.4]} 58. g6
{[%clk 0:00:13.5]} 58... Ke7 {[%clk 0:00:04.2]} 59. Kd4 {[%clk 0:00:12.6]} 59...
Kf8 {[%clk 0:00:03.7]} 60. e6 {[%clk 0:00:12.2]} 60... Bxg6 {[%clk 0:00:03.5]}
61. Kxc4 {[%clk 0:00:12.4]} 61... a4 {[%clk 0:00:04]} 62. Kb4 {[%clk 0:00:12.3]}
62... Bc2 {[%clk 0:00:04.4]} 63. Kc3 {[%clk 0:00:13]} 63... Bb3 {[%clk
0:00:04.9]} 64. Kb2 {[%clk 0:00:13.9]} 64... Ke7 {[%clk 0:00:04.8]} 65. Ka1
{[%clk 0:00:14.8]} 65... Kxe6 {[%clk 0:00:05.6]} 66. Kb2 {[%clk 0:00:15.7]}
66... Kd6 {[%clk 0:00:06]} 67. Ka1 {[%clk 0:00:16.6]} 67... Kd5 {[%clk
0:00:06.6]} 68. Kb2 {[%clk 0:00:17.5]} 68... Ke4 {[%clk 0:00:07.1]} 69. Ka1
{[%clk 0:00:18.4]} 69... Ke3 {[%clk 0:00:07.8]} 70. Kb2 {[%clk 0:00:19.3]} 70...
Ke2 {[%clk 0:00:08.6]} 71. Ka1 {[%clk 0:00:20.2]} 71... Ke1 {[%clk 0:00:09.4]}
72. Kb2 {[%clk 0:00:21.1]} 72... Bc4 {[%clk 0:00:09.7]} 73. Ka1 {[%clk 0:00:22]}
73... Bb5 {[%clk 0:00:10.5]} 74. Kb2 {[%clk 0:00:22.5]} 74... Kd2 {[%clk
0:00:11.4]} 75. Ka1 {[%clk 0:00:23.4]} 75... Kc1 {[%clk 0:00:12]} 76. Ka2 {[%clk
0:00:23.7]} 76... Kd2 {[%clk 0:00:11.6]} 77. Ka1 {[%clk 0:00:24.6]} 77... Kc3
{[%clk 0:00:11.6]} 78. Ka2 {[%clk 0:00:25.5]} 78... Kc2 {[%clk 0:00:11.6]} 79.
Ka1 {[%clk 0:00:26]} 79... Kb3 {[%clk 0:00:12.5]} 80. Kb1 {[%clk 0:00:25.6]}
80... Kxa3 {[%clk 0:00:13.4]} 81. Ka1 {[%clk 0:00:26.5]} 81... Kb3 {[%clk
0:00:14.1]} 82. Kb1 {[%clk 0:00:27.4]} 82... Bd3+ {[%clk 0:00:14.5]} 83. Ka1
{[%clk 0:00:28.3]} 83... Be2 {[%clk 0:00:14.8]} 84. Kb1 {[%clk 0:00:28.7]} 84...
Ka3 {[%clk 0:00:15.3]} 85. Ka1 {[%clk 0:00:29.6]} 85... Bd1 {[%clk 0:00:15.7]}
86. Kb1 {[%clk 0:00:30.5]} 86... Bc2+ {[%clk 0:00:16.1]} 87. Ka1 {[%clk
0:00:31.4]} 87... Bb3 {[%clk 0:00:16]} 88. Kb1 {[%clk 0:00:32]} 88... Ba2+
{[%clk 0:00:16.9]} 89. Ka1 {[%clk 0:00:32.9]} 89... Kb3 {[%clk 0:00:17.6]}
1/2-1/2

[Event "Late-Titled-Tuesday-Blitz-April-30-2024"]
[Site "Chess.com"]
[Date "2024.04.30"]
[Round "4"]
[White "DrVelja"]
[Black "grzechu96"]
[Result "1-0"]
[WhiteElo "2972"]
[BlackElo "2785"]
[TimeControl "180+1"]
[EndTime "14:42:02 PDT"]
[Termination "DrVelja won on time"]

1. e4 {[%clk 0:03:00.9]} 1... e5 {[%clk 0:02:59.9]} 2. Nf3 {[%clk 0:03:01.4]}
2... Nc6 {[%clk 0:03:00.3]} 3. Bb5 {[%clk 0:03:00.3]} 3... a6 {[%clk 0:03:00.7]}
4. Ba4 {[%clk 0:03:00.7]} 4... Nf6 {[%clk 0:03:00.2]} 5. O-O {[%clk 0:03:00.1]}
5... b5 {[%clk 0:03:00.3]} 6. Bb3 {[%clk 0:03:00.1]} 6... Bc5 {[%clk 0:03:00.9]}
7. c3 {[%clk 0:02:55.7]} 7... d6 {[%clk 0:03:00.9]} 8. d4 {[%clk 0:02:56.3]}
8... Bb6 {[%clk 0:03:01.2]} 9. Be3 {[%clk 0:02:56]} 9... O-O {[%clk 0:02:39.3]}
10. Nbd2 {[%clk 0:02:53.7]} 10... h6 {[%clk 0:02:37.4]} 11. h3 {[%clk
0:02:53.2]} 11... Re8 {[%clk 0:02:36.7]} 12. Bc2 {[%clk 0:02:47.8]} 12... Rb8
{[%clk 0:02:25.7]} 13. Re1 {[%clk 0:02:47.4]} 13... Bb7 {[%clk 0:02:25.6]} 14.
a3 {[%clk 0:02:46.8]} 14... exd4 {[%clk 0:02:24.2]} 15. cxd4 {[%clk 0:02:47.7]}
15... Ne7 {[%clk 0:02:24.5]} 16. b4 {[%clk 0:02:43.8]} 16... Ng6 {[%clk
0:02:23.5]} 17. Qb1 {[%clk 0:02:43.7]} 17... Nd7 {[%clk 0:02:22.7]} 18. a4
{[%clk 0:02:29.3]} 18... c5 {[%clk 0:02:21.7]} 19. bxc5 {[%clk 0:02:29.8]} 19...
dxc5 {[%clk 0:02:22.6]} 20. d5 {[%clk 0:02:30.6]} 20... Bc7 {[%clk 0:02:22.3]}
21. axb5 {[%clk 0:02:18.6]} 21... axb5 {[%clk 0:02:23.2]} 22. Qxb5 {[%clk
0:02:11]} 22... Bxd5 {[%clk 0:02:22.1]} 23. Qe2 {[%clk 0:01:53.2]} 23... Bc6
{[%clk 0:01:57.8]} 24. Red1 {[%clk 0:01:51.3]} 24... Qe7 {[%clk 0:01:55.5]} 25.
Nc4 {[%clk 0:01:43.1]} 25... Nf6 {[%clk 0:01:33.6]} 26. Ra7 {[%clk 0:01:17.6]}
26... Bh2+ {[%clk 0:01:33.3]} 27. Nxh2 {[%clk 0:01:05.4]} 27... Qxa7 {[%clk
0:01:34.2]} 28. Nd6 {[%clk 0:01:05.9]} 28... Re6 {[%clk 0:01:10.3]} 29. Qc4
{[%clk 0:00:48.8]} 29... Ne5 {[%clk 0:00:26.7]} 30. Qc3 {[%clk 0:00:49.1]} 30...
Ned7 {[%clk 0:00:19.1]} 31. Ng4 {[%clk 0:00:38.1]} 31... Rxd6 {[%clk 0:00:19.1]}
32. Rxd6 {[%clk 0:00:36.4]} 32... Nxe4 {[%clk 0:00:16.5]} 33. Bxe4 {[%clk
0:00:34.4]} 33... Bxe4 {[%clk 0:00:17.4]} 34. Bxh6 {[%clk 0:00:29.4]} 34... gxh6
{[%clk 0:00:06.2]} 35. Qg3 {[%clk 0:00:19.6]} 35... Rb1+ {[%clk 0:00:05.1]} 36.
Kh2 {[%clk 0:00:19.8]} 36... Kf8 {[%clk 0:00:04.5]} 37. Rxh6 {[%clk 0:00:19.3]}
37... Bg6 {[%clk 0:00:03.7]} 38. Rh8+ {[%clk 0:00:07.4]} 38... Ke7 {[%clk
0:00:00.8]} 39. Qe3+ {[%clk 0:00:04.7]} 39... Kd6 {[%clk 0:00:01.4]} 40. Rd8
{[%clk 0:00:04]} 40... Kc7 {[%clk 0:00:01.8]} 41. Qe7 {[%clk 0:00:03.8]} 41...
Qa4 {[%clk 0:00:02.1]} 42. Qg5 {[%clk 0:00:01.1]} 42... Qc6 {[%clk 0:00:02.3]}
43. Ne5 {[%clk 0:00:01.5]} 43... Qe6 {[%clk 0:00:01.7]} 44. Rxd7+ {[%clk
0:00:02.2]} 44... Kb6 {[%clk 0:00:02.1]} 45. Re7 {[%clk 0:00:02.8]} 45... Qd6
{[%clk 0:00:02.3]} 46. Qg3 {[%clk 0:00:02.5]} 46... Qd1 {[%clk 0:00:02.3]} 47.
Nc4+ {[%clk 0:00:02.7]} 47... Kb5 {[%clk 0:00:02.9]} 48. Qb8+ {[%clk 0:00:02.3]}
48... Kxc4 {[%clk 0:00:03.4]} 49. Qf4+ {[%clk 0:00:02.8]} 49... Kb5 {[%clk
0:00:03.6]} 50. Qb8+ {[%clk 0:00:03.1]} 50... Kc4 {[%clk 0:00:04]} 51. Qf4+
{[%clk 0:00:03.5]} 51... Qd4 {[%clk 0:00:04.4]} 52. Qg3 {[%clk 0:00:01.9]} 52...
Rb3 {[%clk 0:00:04.6]} 53. f3 {[%clk 0:00:02]} 53... Rb1 {[%clk 0:00:04.1]} 54.
Qc7 {[%clk 0:00:02.1]} 54... Qg1+ {[%clk 0:00:04.2]} 55. Kg3 {[%clk 0:00:03]}
55... Qd4 {[%clk 0:00:04.2]} 56. Qc6 {[%clk 0:00:02.8]} 56... Qd5 {[%clk
0:00:03.8]} 57. Qa6+ {[%clk 0:00:02.8]} 57... Kc3 {[%clk 0:00:03.5]} 58. Qa5+
{[%clk 0:00:02.9]} 58... Rb4 {[%clk 0:00:03.6]} 59. Qa1+ {[%clk 0:00:03.6]}
59... Kc4 {[%clk 0:00:03.9]} 60. Qf1+ {[%clk 0:00:04.1]} 60... Bd3 {[%clk
0:00:03.2]} 61. Qc1+ {[%clk 0:00:02.7]} 61... Kb5 {[%clk 0:00:03.8]} 62. Re8
{[%clk 0:00:02.7]} 62... Qd6+ {[%clk 0:00:03.8]} 63. Kf2 {[%clk 0:00:02.5]}
63... Qd4+ {[%clk 0:00:04.2]} 64. Kg3 {[%clk 0:00:02.8]} 64... Qg7+ {[%clk
0:00:04]} 65. Kh2 {[%clk 0:00:02.8]} 65... Qf6 {[%clk 0:00:03.5]} 66. Rb8+
{[%clk 0:00:02.8]} 66... Ka6 {[%clk 0:00:02.6]} 67. Qa3+ {[%clk 0:00:02.8]} 1-0